bitfinex-derivatives/quotes_BTCF0:USTF0_20251011
["timestamp","ask_amount","ask_price","bid_price","bid_amount"]
[1760202136769,0.97577067,111820.0,111810.0,0.16475686]
[1760202137072,0.97577067,111820.0,111810.0,0.14359686]
[1760202137875,0.97577067,111820.0,111810.0,0.16657686]
[1760202139676,0.52261148,111820.0,111810.0,0.16657686]
[1760202139880,0.97577067,111820.0,111810.0,0.16657686]
[1760202140776,0.97577067,111820.0,111810.0,0.14359686]
[1760202142676,0.97577067,111820.0,111810.0,0.16657686]
[1760202143374,0.52261148,111820.0,111810.0,0.16657686]
[1760202143580,0.97577067,111820.0,111810.0,0.16657686]
[1760202144179,0.52261148,111820.0,111810.0,0.16657686]
[1760202144377,0.97577067,111820.0,111810.0,0.16657686]
[1760202144570,0.97477067,111820.0,111810.0,0.16657686]
[1760202144774,0.16181148,111820.0,111810.0,0.61973605]
[1760202145180,0.07247148,111820.0,111810.0,0.70908405]
[1760202145481,0.07247148,111820.0,111810.0,1.16224324]
[1760202145676,0.07247148,111820.0,111810.0,1.92304324]
[1760202145677,0.002,111820.0,111810.0,1.92304324]
[1760202145876,0.002,111820.0,111810.0,2.00260746]
[1760202146077,0.002,111820.0,111810.0,1.54944827]
[1760202146882,0.001,111820.0,111810.0,1.54944827]
[1760202147082,0.002,111820.0,111810.0,1.54944827]
[1760202147583,0.001,111820.0,111810.0,1.54944827]
[1760202147779,0.002,111820.0,111810.0,1.54944827]
[1760202148674,0.002,111820.0,111810.0,2.00260746]
[1760202149383,0.002,111820.0,111810.0,1.92304324]
[1760202150984,0.90529919,111820.0,111810.0,0.24686568]
[1760202151185,0.90529919,111820.0,111810.0,0.16657686]
[1760202151577,0.45214,111820.0,111810.0,0.16657686]
[1760202151878,0.3628,111820.0,111810.0,0.16657686]
[1760202152084,0.002,111820.0,111810.0,1.41957773]
[1760202153388,0.002,111820.0,111810.0,1.05877773]
[1760202153585,0.002,111820.0,111810.0,1.41957773]
[1760202156391,0.002,111820.0,111810.0,1.49986655]
[1760202161493,0.002,111820.0,111810.0,0.69701368]
[1760202161694,0.002,111820.0,111810.0,0.25592486]
[1760202162289,0.09134,111820.0,111810.0,0.16657686]
[1760202162492,0.85214,111820.0,111810.0,0.16657686]
[1760202162695,0.45214,111820.0,111810.0,0.25602486]
[1760202163095,0.45214,111820.0,111810.0,0.16667686]
[1760202163798,1.25499287,111820.0,111810.0,0.13291]
[1760202164696,1.25499287,111820.0,111810.0,0.1430435]
[1760202165196,0.85214,111820.0,111810.0,0.1661235]
[1760202167900,0.85214,111820.0,111810.0,0.15599]
[1760202168196,0.85214,111820.0,111810.0,0.13291]
[1760202168390,0.85214,111820.0,111810.0,0.15599]
[1760202173803,0.85214,111820.0,111810.0,0.13291]
[1760202174303,0.85214,111820.0,111810.0,0.15599]
[1760202174503,1.25499287,111820.0,111810.0,0.15599]
[1760202174994,1.25499287,111820.0,111810.0,0.13291]
[1760202175403,1.25499287,111820.0,111810.0,0.15599]
[1760202175802,0.85214,111820.0,111810.0,0.15599]
[1760202176207,0.45214,111820.0,111810.0,0.15599]
[1760202179710,0.3628,111820.0,111810.0,1.04819087]
[1760202180111,0.45214,111820.0,111810.0,0.55599]
[1760202180310,0.45214,111820.0,111810.0,0.15599]
[1760202181207,0.85499287,111820.0,111810.0,0.13291]
[1760202181411,0.45214,111820.0,111810.0,0.15599]
[1760202184815,0.45214,111820.0,111810.0,0.245338]
[1760202184816,0.3628,111820.0,111810.0,0.245338]
[1760202185016,0.3628,111820.0,111810.0,1.04819087]
[1760202185213,0.3628,111820.0,111810.0,0.645338]
[1760202185414,0.3628,111820.0,111810.0,1.04819087]
[1760202185615,0.45214,111820.0,111810.0,1.04819087]
[1760202185916,0.45214,111820.0,111810.0,0.645338]
[1760202186910,0.45214,111820.0,111810.0,0.55599]
[1760202188619,0.002,111820.0,111810.0,0.645338]
[1760202188819,0.002,111820.0,111810.0,1.40899087]
[1760202189318,0.002,111820.0,111810.0,1.48927969]
[1760202190421,0.002,111820.0,111810.0,1.40899087]
[1760202190721,0.002,111820.0,111810.0,1.006138]
[1760202190923,0.002,111820.0,111810.0,1.52144472]
[1760202191418,0.002,111820.0,111810.0,1.40899087]
[1760202192721,0.002,111820.0,111810.0,1.00899087]
[1760202194825,0.002,111820.0,111810.0,1.08923087]
[1760202196028,0.002,111820.0,111810.0,1.48923087]
[1760202196922,0.07058846,111840.0,111830.0,0.089332]
[1760202197226,0.07058846,111840.0,111830.0,0.99886487]
[1760202197422,0.15991246,111840.0,111830.0,0.99886487]
[1760202197625,0.15991246,111840.0,111830.0,0.235212]
[1760202198622,0.07058846,111840.0,111830.0,0.235212]
[1760202198928,0.07158846,111840.0,111830.0,0.235212]
[1760202199429,0.07258846,111840.0,111830.0,0.235212]
[1760202199927,0.00206527,111840.0,111830.0,1.39886487]
[1760202200923,0.00206527,111840.0,111830.0,1.47910487]
[1760202201128,0.4501,111870.0,111860.0,0.125188]
[1760202201330,0.4501,111870.0,111860.0,0.14588]
[1760202201733,0.4501,111870.0,111860.0,0.235188]
[1760202202631,0.4511,111870.0,111860.0,0.235188]
[1760202203131,0.52396171,111870.0,111860.0,0.235188]
[1760202203630,0.52496171,111870.0,111860.0,0.235188]
[1760202205724,0.52396171,111870.0,111860.0,0.235188]
[1760202206032,1.32781458,111870.0,111860.0,0.12293]
[1760202206232,1.32681458,111870.0,111860.0,0.12293]
[1760202206622,1.32581458,111870.0,111860.0,0.12293]
[1760202206830,1.32681458,111870.0,111860.0,0.12293]
[1760202207533,0.92681458,111870.0,111860.0,0.14588]
[1760202207729,0.92681458,111870.0,111860.0,0.12293]
[1760202208731,1.32681458,111870.0,111860.0,0.121762]
[1760202209434,1.32681458,111870.0,111860.0,0.00580275]
[1760202209732,0.0893249,111850.0,111840.0,0.01293]
[1760202209929,1.21377777,111850.0,111840.0,0.14293]
[1760202210133,1.61377777,111850.0,111840.0,0.13]
[1760202211428,1.68293519,111850.0,111840.0,0.13]
[1760202212630,0.0893408,111830.0,111820.0,0.01332]
[1760202212837,0.8109408,111830.0,111820.0,0.12332]
[1760202213034,1.68295109,111830.0,111820.0,0.12332]
[1760202213638,1.68295109,111830.0,111820.0,0.11]
[1760202213841,1.68395109,111830.0,111820.0,0.11]
[1760202216240,1.75383731,111830.0,111820.0,0.11]
[1760202217135,0.0893489,111820.0,111780.0,0.54436]
[1760202217341,0.4518498,111800.0,111790.0,0.03573]
[1760202217537,0.4518498,111800.0,111790.0,0.17573]
[1760202217841,0.4518498,111800.0,111790.0,0.18593319]
[1760202218147,0.36248,111800.0,111790.0,0.18593319]
[1760202218438,0.36248,111800.0,111790.0,0.27530599]
[1760202218646,0.3608,111800.0,111790.0,0.27530599]
[1760202218943,0.36248,111800.0,111790.0,0.27530599]
[1760202219542,0.00268,111800.0,111790.0,0.27530599]
[1760202220644,0.0920448,111800.0,111790.0,0.27530599]
[1760202221342,0.0920448,111800.0,111790.0,0.18593319]
[1760202222742,0.92485509,111800.0,111790.0,0.15020319]
[1760202223046,0.92485509,111800.0,111790.0,0.14]
[1760202224045,0.92485509,111800.0,111790.0,0.15393]
[1760202224447,1.79686538,111800.0,111790.0,0.14]
[1760202224650,0.0910608,111780.0,111770.0,7.985e-05]
[1760202224948,1.28467109,111780.0,111770.0,0.12007985]
[1760202225148,1.68467109,111780.0,111770.0,0.12007985]
[1760202229052,1.68467109,111780.0,111770.0,0.13400985]
[1760202229240,1.75534644,111780.0,111770.0,0.13400985]
[1760202229848,0.88333615,111780.0,111770.0,0.15627985]
[1760202230547,0.79395535,111780.0,111770.0,0.55627985]
[1760202231851,0.43315535,111780.0,111770.0,0.55627985]
[1760202232557,0.52253615,111780.0,111770.0,0.55627985]
[1760202234455,0.43147535,111780.0,111770.0,0.64566865]
[1760202234751,0.3608,111790.0,111780.0,0.1033108]
[1760202234957,0.0910448,111800.0,111790.0,0.1255728]
[1760202235153,0.4518408,111810.0,111800.0,0.0362]
[1760202235353,0.4518408,111810.0,111800.0,0.1562]
[1760202236059,0.52457007,111810.0,111800.0,0.1562]
[1760202236553,0.52457007,111810.0,111800.0,0.16634063]
[1760202237859,0.52557007,111810.0,111800.0,0.16634063]
[1760202240357,0.52557007,111810.0,111800.0,0.1562]
[1760202244352,0.52557007,111810.0,111800.0,0.16643889]
[1760202244962,0.52557007,111810.0,111800.0,0.1562]
[1760202245463,0.97887565,111810.0,111800.0,0.1562]
[1760202245763,0.97887565,111810.0,111800.0,0.16600571]
[1760202245957,1.43218123,111810.0,111800.0,0.16600571]
[1760202246164,0.97887565,111810.0,111800.0,0.16600571]
[1760202247563,1.43218123,111810.0,111800.0,0.16600571]
[1760202247765,1.43218123,111810.0,111800.0,0.12]
[1760202248564,0.97887565,111810.0,111800.0,0.16599669]
[1760202253076,1.43218123,111810.0,111800.0,0.1562]
[1760202253872,1.43218123,111810.0,111800.0,0.13393]
[1760202254777,1.43218123,111810.0,111800.0,0.16614213]
[1760202255776,1.43218123,111810.0,111800.0,0.15645]
[1760202256876,1.79298123,111810.0,111800.0,0.15645]
[1760202257274,1.79298123,111810.0,111800.0,0.12]
[1760202257674,1.79298123,111810.0,111800.0,0.15651]
[1760202258176,1.79298123,111810.0,111800.0,0.13399]
[1760202258971,1.79298123,111810.0,111800.0,0.12]
[1760202259777,2.21608986,111810.0,111800.0,0.12]
[1760202260082,0.0910529,111790.0,111780.0,0.01393]
[1760202260380,1.26595848,111790.0,111780.0,0.12]
[1760202261475,2.11926406,111790.0,111780.0,0.12]
[1760202261683,2.14237555,111790.0,111780.0,0.12]
[1760202261882,0.0910609,111780.0,111770.0,7.985e-05]
[1760202262180,1.35847206,111780.0,111770.0,0.04007985]
[1760202264079,1.35947206,111780.0,111770.0,0.04007985]
[1760202264281,1.35947206,111780.0,111770.0,0.05406985]
[1760202266383,0.4528609,111780.0,111770.0,0.05406985]
[1760202266577,1.35947206,111780.0,111770.0,0.05406985]
[1760202266779,0.99867206,111780.0,111770.0,0.05406985]
[1760202266984,1.72027206,111780.0,111770.0,0.04007985]
[1760202268682,0.8136609,111780.0,111770.0,0.05406985]
[1760202268884,1.72027206,111780.0,111770.0,0.05406985]
[1760202269783,1.72027206,111780.0,111770.0,0.07658985]
[1760202271086,1.26696648,111780.0,111770.0,0.07658985]
[1760202272785,1.26696648,111780.0,111770.0,0.05406985]
[1760202273285,1.72027206,111780.0,111770.0,0.04007985]
[1760202273488,1.21690473,111780.0,111770.0,0.04007985]
[1760202273786,1.21690473,111780.0,111770.0,0.07658985]
[1760202274187,0.8136609,111780.0,111770.0,0.07658985]
[1760202276592,1.21690473,111780.0,111770.0,0.07658985]
[1760202276892,1.21690473,111780.0,111770.0,0.05406985]
[1760202277089,1.21690473,111780.0,111770.0,0.04007985]
[1760202277688,1.21690473,111780.0,111770.0,0.07658985]
[1760202279488,0.8136609,111780.0,111770.0,0.07658985]
[1760202282490,1.21690473,111780.0,111770.0,0.05406985]
[1760202282691,1.21690473,111780.0,111770.0,0.04007985]
[1760202283394,1.61690473,111780.0,111770.0,0.04007985]
[1760202285194,1.61590473,111780.0,111770.0,0.04007985]
[1760202285394,1.61690473,111780.0,111770.0,0.04007985]
[1760202295904,1.21690473,111780.0,111750.0,0.01399]
[1760202296207,0.1123725,111750.0,111740.0,0.02178]
[1760202296407,0.87641633,111750.0,111740.0,0.15178]
[1760202297306,0.87641633,111750.0,111740.0,0.16171759]
[1760202297501,0.88341633,111750.0,111740.0,0.13993759]
[1760202297706,0.88341633,111750.0,111740.0,0.13]
[1760202298006,0.88441633,111750.0,111740.0,0.13]
[1760202299705,0.88441633,111750.0,111740.0,0.13959989]
[1760202299906,0.88441633,111750.0,111740.0,0.13]
[1760202300905,0.88441633,111750.0,111740.0,0.15178]
[1760202301305,0.4741725,111750.0,111740.0,0.56535]
[1760202301504,0.001,111750.0,111740.0,1.41880673]
[1760202302503,0.001,111750.0,111740.0,0.57501959]
[1760202302708,0.02396,111750.0,111740.0,0.66443249]
[1760202303210,0.1133649,111750.0,111740.0,0.66443249]
[1760202304007,0.02396,111750.0,111740.0,1.06767632]
[1760202304213,0.001,111750.0,111740.0,1.06767632]
[1760202305413,0.001,111750.0,111740.0,1.42847632]
[1760202307415,0.001,111750.0,111740.0,1.50871632]
[1760202308108,0.52344087,111770.0,111760.0,0.0893969]
[1760202308309,0.18560087,111770.0,111760.0,0.63799073]
[1760202308713,0.18560087,111770.0,111760.0,0.2347469]
[1760202308918,0.1123522,111770.0,111760.0,0.2347469]
[1760202309214,0.1133522,111770.0,111760.0,0.2347469]
[1760202309616,0.1143522,111770.0,111760.0,0.2347469]
[1760202310718,0.4751522,111770.0,111760.0,0.2347469]
[1760202311017,0.1143522,111770.0,111760.0,0.2347469]
[1760202311218,0.4751522,111770.0,111760.0,0.2347469]
[1760202314216,0.38576,111770.0,111760.0,0.2347469]
[1760202314716,0.002,111770.0,111760.0,1.39879073]
[1760202314920,0.002,111770.0,111760.0,1.47903073]
[1760202315317,6.531e-05,111780.0,111770.0,0.1256189]
[1760202315518,6.531e-05,111780.0,111770.0,1.47988064]
[1760202315713,1e-08,111780.0,111770.0,1.39966273]
[1760202316418,1e-08,111780.0,111770.0,1.47983268]
[1760202316820,1e-08,111780.0,111770.0,1.39966273]
[1760202317324,1e-08,111780.0,111770.0,1.47982773]
[1760202321430,1e-08,111780.0,111770.0,1.39966273]
[1760202321731,1e-08,111780.0,111770.0,1.47982773]
[1760202322338,1e-08,111780.0,111770.0,1.39966273]
[1760202323933,1e-08,111780.0,111770.0,1.47982773]
[1760202324529,1e-08,111780.0,111770.0,1.39966273]
[1760202325634,1e-08,111780.0,111770.0,0.9964189]
[1760202325835,1e-08,111780.0,111770.0,0.99966273]
[1760202333136,1e-08,111780.0,111770.0,1.07982773]
[1760202333638,1e-08,111780.0,111770.0,1.58325284]
[1760202333940,1e-08,111780.0,111770.0,1.12991837]
[1760202334136,1e-08,111780.0,111770.0,1.04975337]
[1760202334331,1e-08,111780.0,111770.0,1.50308784]
[1760202334532,1e-08,111780.0,111770.0,1.58325284]
[1760202339341,0.0963492,111820.0,111810.0,0.1026769]
[1760202339342,0.38223,111820.0,111810.0,0.1026769]
[1760202339643,0.38223,111820.0,111810.0,1.16225584]
[1760202339940,0.02143,111820.0,111810.0,1.16225584]
[1760202340138,0.4715709,111830.0,111820.0,0.1255789]
[1760202340334,0.47161479,111830.0,111820.0,0.70891337]
[1760202340640,0.54437392,111830.0,111820.0,0.70891337]
[1760202340836,0.99770839,111830.0,111820.0,0.70891337]
[1760202341140,0.54437392,111830.0,111820.0,0.70891337]
[1760202341542,0.54437392,111830.0,111820.0,0.61956447]
[1760202341943,0.54437392,111830.0,111820.0,0.70891337]
[1760202342642,0.54637392,111830.0,111820.0,0.70891337]
[1760202343540,0.54637392,111830.0,111820.0,0.71872889]
[1760202344236,1.39970839,111830.0,111820.0,0.62937999]
[1760202344640,1.39970839,111830.0,111820.0,0.71872889]
[1760202345941,0.85703302,111830.0,111820.0,0.71872889]
[1760202346143,0.45703302,111830.0,111820.0,0.71872889]
[1760202346344,0.45703302,111830.0,111820.0,0.78287598]
[1760202346539,0.00204389,111830.0,111820.0,0.78287598]
[1760202346739,0.00204389,111830.0,111820.0,1.14367598]
[1760202346944,0.00204389,111830.0,111820.0,0.78287598]
[1760202347246,0.02357389,111830.0,111820.0,0.78287598]
[1760202348143,0.47371479,111830.0,111820.0,0.24019261]
[1760202348345,0.47371479,111830.0,111820.0,0.78287598]
[1760202348346,0.92704926,111830.0,111820.0,0.78287598]
[1760202348546,0.47371479,111830.0,111820.0,0.78287598]
[1760202350347,0.47371479,111830.0,111820.0,0.71872889]
[1760202350648,0.38437389,111830.0,111820.0,0.71872889]
[1760202350846,0.02357389,111830.0,111820.0,0.78287598]
[1760202351048,0.38437389,111830.0,111820.0,0.78287598]
[1760202351554,0.02357389,111830.0,111820.0,0.78287598]
[1760202352647,0.02357389,111830.0,111820.0,0.71872889]
[1760202353242,0.11291479,111830.0,111820.0,0.26539442]
[1760202353453,0.11291479,111830.0,111820.0,0.71872889]
[1760202354055,0.11291479,111830.0,111820.0,0.26539442]
[1760202354351,0.11291479,111830.0,111820.0,0.71872889]
[1760202356047,1.32704926,111830.0,111820.0,0.17604552]
[1760202356247,0.87371479,111830.0,111820.0,0.71872889]
[1760202356451,0.78437389,111830.0,111820.0,0.71872889]
[1760202356647,0.87371479,111830.0,111820.0,0.71872889]
[1760202356850,0.87371479,111830.0,111820.0,0.26539442]
[1760202357052,0.87371479,111830.0,111820.0,0.71872889]
[1760202357451,0.87371479,111830.0,111820.0,0.26539442]
[1760202357652,0.87371479,111830.0,111820.0,0.62937999]
[1760202358152,0.87371479,111830.0,111820.0,0.71872889]
[1760202359453,0.87371479,111830.0,111820.0,0.58872889]
[1760202361252,1.32704926,111830.0,111820.0,0.49937999]
[1760202361753,1.32704926,111830.0,111820.0,0.58872889]
[1760202362155,0.78437389,111830.0,111820.0,0.58872889]
[1760202362355,0.87371479,111830.0,111820.0,0.58872889]
[1760202362849,0.78437389,111830.0,111820.0,0.58872889]
[1760202363253,0.00204389,111830.0,111820.0,0.58872889]
[1760202364247,0.00204389,111830.0,111820.0,0.94952889]
[1760202364651,0.02357389,111830.0,111820.0,0.94952889]
[1760202364856,0.02357389,111830.0,111820.0,0.58872889]
[1760202366960,0.00204389,111830.0,111820.0,0.94952889]
[1760202367154,0.02157389,111830.0,111820.0,0.94952889]
[1760202367462,0.02257389,111830.0,111820.0,0.58872889]
[1760202367759,0.02257389,111830.0,111820.0,0.94952889]
[1760202368060,0.02257389,111830.0,111820.0,0.58872889]
[1760202368254,0.38337389,111830.0,111820.0,0.58872889]
[1760202369755,0.38237389,111830.0,111820.0,0.58872889]
[1760202369948,0.47271479,111830.0,111820.0,0.49937999]
[1760202370150,0.92604926,111830.0,111820.0,0.58872889]
[1760202370455,0.02257389,111830.0,111820.0,0.58648889]
[1760202371057,0.12585479,111830.0,111820.0,0.57372889]
[1760202371561,0.48665479,111830.0,111820.0,0.57372889]
[1760202371861,0.93998926,111830.0,111820.0,0.57372889]
[1760202373059,0.39731389,111830.0,111820.0,0.57372889]
[1760202374060,0.39731389,111830.0,111820.0,0.58704889]
[1760202374261,0.38337389,111830.0,111820.0,0.58704889]
[1760202375161,0.00104389,111830.0,111820.0,0.94784889]
[1760202375359,0.02365389,111830.0,111820.0,0.66724639]
[1760202375559,0.47379479,111830.0,111820.0,0.66724639]
[1760202375756,0.02365389,111830.0,111820.0,0.94784889]
[1760202375961,0.02365389,111830.0,111820.0,1.02804639]
[1760202376160,0.00104389,111830.0,111820.0,1.02804639]
[1760202376663,0.38445389,111830.0,111820.0,0.66724639]
[1760202376865,0.38445389,111830.0,111820.0,0.58704889]
[1760202377664,0.47379479,111830.0,111820.0,0.58704889]
[1760202377962,0.48682479,111830.0,111820.0,0.58704889]
[1760202378262,0.38445389,111830.0,111820.0,0.58704889]
[1760202378464,0.02365389,111830.0,111820.0,0.58704889]
[1760202379964,0.00104389,111830.0,111820.0,0.58704889]
[1760202380264,0.00104389,111830.0,111820.0,0.94784889]
[1760202380465,0.02365389,111830.0,111820.0,1.02804639]
[1760202382368,0.02365389,111830.0,111820.0,0.94784889]
[1760202386866,0.38445389,111830.0,111820.0,0.58704889]
[1760202387169,0.38445389,111830.0,111820.0,0.66740842]
[1760202387772,0.38445389,111830.0,111820.0,0.58704889]
[1760202388565,0.02365389,111830.0,111820.0,0.58704889]
[1760202391563,0.02365389,111830.0,111820.0,0.49769999]
[1760202391769,0.88682479,111830.0,111820.0,0.00981552]
[1760202392366,0.1249889,111820.0,111810.0,0.47549447]
[1760202392567,0.4857889,111820.0,111810.0,0.47549447]
[1760202393068,0.39644,111820.0,111810.0,0.47549447]
[1760202393257,0.4857889,111820.0,111810.0,0.47549447]
[1760202393463,0.4857889,111820.0,111810.0,0.42498542]
[1760202395568,0.4867889,111820.0,111810.0,0.43830542]
[1760202396468,0.4867889,111820.0,111810.0,0.44768952]
[1760202398073,0.4867889,111820.0,111810.0,0.43436952]
[1760202398770,0.4867889,111820.0,111810.0,0.44768952]
[1760202399071,0.4737589,111820.0,111810.0,0.44768952]
[1760202401571,0.1129589,111820.0,111810.0,0.44768952]
[1760202403671,0.001,111820.0,111810.0,0.89784642]
[1760202404675,0.0231,111820.0,111810.0,0.89784642]
[1760202405074,0.03707,111820.0,111810.0,0.80848952]
[1760202405274,0.0231,111820.0,111810.0,0.89784642]
[1760202406978,0.001,111820.0,111810.0,1.29784642]
[1760202408274,0.02214389,111830.0,111820.0,0.1245289]
[1760202408473,0.02214389,111830.0,111820.0,0.79880542]
[1760202408680,0.03611389,111830.0,111820.0,0.42433542]
[1760202409681,0.12545479,111830.0,111820.0,0.42433542]
[1760202409882,0.03611389,111830.0,111820.0,0.42433542]
[1760202410179,0.02214389,111830.0,111820.0,0.52735432]
[1760202410884,0.02314389,111830.0,111820.0,0.52735432]
[1760202411883,0.02314389,111830.0,111820.0,0.88815432]
[1760202416586,0.11248479,111830.0,111820.0,0.43800542]
[1760202420087,0.02314389,111830.0,111820.0,0.52735432]
[1760202420992,0.11248479,111830.0,111820.0,0.43800542]
[1760202421192,0.12645479,111830.0,111820.0,0.43800542]
[1760202421387,0.11248479,111830.0,111820.0,0.43800542]
[1760202422090,0.11248479,111830.0,111820.0,0.52735432]
[1760202422596,0.02314389,111830.0,111820.0,0.52735432]
[1760202423096,0.02314389,111830.0,111820.0,0.88815432]
[1760202428298,0.02314389,111830.0,111820.0,1.28815432]
[1760202428299,0.00104389,111830.0,111820.0,1.28815432]
[1760202428502,0.07293065,111840.0,111820.0,1.28815432]
[1760202428503,0.07293065,111840.0,111830.0,0.1245209]
[1760202428698,0.3829,111870.0,111860.0,0.0893169]
[1760202428904,0.0221,111870.0,111860.0,0.52732232]
[1760202429402,0.0221,111870.0,111860.0,0.88812232]
[1760202430204,0.0231,111870.0,111860.0,0.88812232]
[1760202430695,0.09579039,111870.0,111860.0,0.88812232]
[1760202432503,0.09479039,111870.0,111860.0,0.88812232]
[1760202433200,0.09579039,111870.0,111860.0,0.88812232]
[1760202434900,0.09479039,111870.0,111860.0,0.88812232]
[1760202435505,0.18409939,111870.0,111860.0,0.43800542]
[1760202435701,0.55836939,111870.0,111860.0,0.43800542]
[1760202436099,0.55836939,111870.0,111860.0,0.52732232]
[1760202437205,0.09479039,111870.0,111860.0,0.52732232]
[1760202439109,0.09479039,111870.0,111860.0,0.88812232]
[1760202439608,0.07269039,111870.0,111860.0,1.28812232]
[1760202440011,0.02316,111880.0,111870.0,0.1252463]
[1760202440309,0.09434365,111880.0,111870.0,0.88887172]
[1760202440510,0.02316,111880.0,111870.0,0.88887172]
[1760202440906,0.02316,111880.0,111870.0,0.89841196]
[1760202442214,0.02416,111880.0,111870.0,0.53761196]
[1760202442609,0.38496,111880.0,111870.0,0.53761196]
[1760202442905,0.887731,111880.0,111870.0,0.43495566]
[1760202443315,0.79843,111880.0,111870.0,0.52426466]
[1760202444714,0.86812068,111880.0,111870.0,0.52426466]
[1760202445213,0.86812068,111880.0,111870.0,0.53761466]
[1760202445816,0.50732068,111880.0,111870.0,0.53761466]
[1760202446012,0.86812068,111880.0,111870.0,0.53761466]
[1760202447311,0.95742168,111880.0,111870.0,0.53761466]
[1760202448019,0.86812068,111880.0,111870.0,0.53761466]
[1760202448212,0.85465068,111880.0,111870.0,0.53761466]
[1760202451221,0.45465068,111880.0,111870.0,0.53761466]
[1760202455418,0.45465068,111880.0,111870.0,1.04000752]
[1760202456724,0.54395168,111880.0,111870.0,1.04000752]
[1760202458624,0.09385068,111880.0,111870.0,1.40080752]
[1760202458820,0.07069068,111880.0,111870.0,1.80080752]
[1760202462428,0.07069068,111880.0,111870.0,1.40080752]
[1760202466931,0.001,111880.0,111870.0,1.80080752]
[1760202472022,0.07226307,111890.0,111880.0,0.089301]
[1760202472223,0.089285,111900.0,111890.0,0.089293]
[1760202472530,0.110865,111900.0,111890.0,0.57742214]
[1760202472831,0.18331437,111900.0,111890.0,0.57742214]
[1760202473433,0.54411437,111900.0,111890.0,0.57742214]
[1760202473727,0.54511437,111900.0,111890.0,0.57742214]
[1760202473934,0.54511437,111900.0,111890.0,0.48812914]
[1760202474437,0.54511437,111900.0,111890.0,0.57742214]
[1760202477738,0.45582937,111900.0,111890.0,0.57742214]
[1760202478337,0.54511437,111900.0,111890.0,0.57742214]
[1760202478733,0.18431437,111900.0,111890.0,0.57742214]
[1760202479539,0.54511437,111900.0,111890.0,0.48812914]
[1760202480241,0.54511437,111900.0,111890.0,0.57742214]
[1760202480930,0.54511437,111900.0,111890.0,0.48812914]
[1760202484435,0.18431437,111900.0,111890.0,0.48812914]
[1760202484637,0.18431437,111900.0,111890.0,1.03003128]
[1760202484842,0.001,111900.0,111890.0,1.79083128]
[1760202485839,0.02158,111910.0,111900.0,0.0892806]
[1760202486039,0.02158,111910.0,111900.0,1.39081888]
[1760202486341,0.09473007,111910.0,111900.0,1.39081888]
[1760202486841,0.02158,111910.0,111900.0,1.39081888]
[1760202487248,0.4716524,111920.0,111910.0,0.03552]
[1760202487539,0.4716524,111920.0,111910.0,0.48812914]
[1760202488445,0.4726524,111920.0,111910.0,0.48812914]
[1760202488743,0.02258,111920.0,111910.0,0.93820624]
[1760202488943,0.1118491,111920.0,111910.0,0.93820624]
[1760202489343,0.0902691,111920.0,111910.0,0.57740624]
[1760202489544,0.1118491,111920.0,111910.0,0.57740624]
[1760202489941,0.1118491,111920.0,111910.0,0.1247971]
[1760202490139,0.1118491,111920.0,111910.0,0.57740624]
[1760202490743,0.02258,111920.0,111910.0,0.57740624]
[1760202491641,0.07347937,111920.0,111910.0,0.97740624]
[1760202491844,0.001,111920.0,111910.0,0.97740624]
[1760202492046,0.0223,111940.0,111930.0,0.124967]
[1760202492249,0.0223,111950.0,111940.0,0.1249631]
[1760202492437,0.4849672,111960.0,111950.0,0.03571]
[1760202492641,0.4849672,111960.0,111950.0,0.48831914]
[1760202493247,0.55766341,111960.0,111950.0,0.49782032]
[1760202493439,0.55766341,111960.0,111950.0,0.48405032]
[1760202494552,0.55966341,111960.0,111950.0,0.48405032]
[1760202495849,0.55966341,111960.0,111950.0,0.00950118]
[1760202495850,0.95966341,111960.0,111950.0,0.00950118]
[1760202496250,0.1241752,111950.0,111940.0,0.02194]
[1760202496450,0.4849752,111950.0,111940.0,0.47454914]
[1760202497153,0.4849752,111950.0,111940.0,0.02194]
[1760202497348,0.4849752,111950.0,111940.0,0.48413843]
[1760202497556,0.4844752,111950.0,111940.0,0.48413843]
[1760202501556,0.4844752,111950.0,111940.0,0.49790843]
[1760202501755,0.4844752,111950.0,111940.0,0.48413843]
[1760202503957,0.4844752,111950.0,111940.0,0.03152929]
[1760202504159,0.4844752,111950.0,111940.0,0.48413843]
[1760202504459,0.4844752,111950.0,111940.0,0.03152929]
[1760202504660,0.4844752,111950.0,111940.0,0.48413843]
[1760202505760,0.4844752,111950.0,111940.0,0.49790843]
[1760202506060,0.4844752,111950.0,111940.0,0.48413843]
[1760202511656,0.1236752,111950.0,111940.0,0.48413843]
[1760202511862,0.4844752,111950.0,111940.0,0.48413843]
[1760202512362,0.4844752,111950.0,111940.0,0.03152929]
[1760202512563,0.4844752,111950.0,111940.0,0.48413843]
[1760202513260,0.4844752,111950.0,111940.0,0.03152929]
[1760202513662,0.4844752,111950.0,111940.0,0.48413843]
[1760202513958,0.8844752,111950.0,111930.0,0.01377]
[1760202514163,0.1241991,111920.0,111910.0,0.02194]
[1760202514463,0.111585,111900.0,111890.0,0.84911914]
[1760202514763,0.111585,111900.0,111890.0,0.85857283]
[1760202515455,0.111585,111900.0,111890.0,0.40596369]
[1760202515864,0.111585,111900.0,111890.0,0.49525669]
[1760202517368,0.0223,111900.0,111890.0,0.49525669]
[1760202517762,0.09424948,111900.0,111890.0,0.49525669]
[1760202518368,0.18353448,111900.0,111890.0,0.49525669]
[1760202518666,0.18353448,111900.0,111890.0,0.40596369]
[1760202520067,0.18353448,111900.0,111890.0,0.49525669]
[1760202520268,0.18353448,111900.0,111890.0,0.40596369]
[1760202521767,0.19741448,111900.0,111890.0,0.40596369]
[1760202522368,0.55821448,111900.0,111890.0,0.03139369]
[1760202522568,1.36041697,111900.0,111890.0,0.00945369]
[1760202522761,0.96041697,111900.0,111890.0,0.00945369]
[1760202522967,0.110771,111880.0,111870.0,0.48663831]
[1760202523269,0.110771,111880.0,111870.0,0.48663891]
[1760202523469,0.110771,111880.0,111870.0,0.49573987]
[1760202524172,0.110771,111880.0,111870.0,0.49673987]
[1760202524771,0.124651,111880.0,111870.0,0.49673987]
[1760202525371,0.02147,111880.0,111870.0,0.49673987]
[1760202526070,0.110771,111880.0,111870.0,0.49673987]
[1760202527170,0.02147,111880.0,111870.0,0.49673987]
[1760202529074,0.54350908,111900.0,111890.0,0.125373]
[1760202529269,0.16123448,111900.0,111890.0,0.52757549]
[1760202529572,0.07194948,111900.0,111890.0,0.88837549]
[1760202529764,0.4715515,111910.0,111900.0,0.03608]
[1760202531072,0.4725515,111910.0,111900.0,0.125365]
[1760202531774,0.54235189,111910.0,111900.0,0.125365]
[1760202532075,0.54234739,111910.0,111900.0,0.125365]
[1760202532573,0.07080039,111910.0,111900.0,0.88836749]